[Event "Early-Titled-Tuesday-Blitz-October-17-2023"]
[Site "Chess.com"]
[Date "2023.10.17"]
[Round "8"]
[White "rachidhuilda"]
[Black "NowInChess"]
[Result "1/2-1/2"]
[WhiteElo "2316"]
[BlackElo "2205"]
[TimeControl "180+1"]
[EndTime "9:33:28 PDT"]
[Termination "Game drawn by repetition"]

1. d4 {[%clk 0:02:54.4]} 1... Nf6 {[%clk 0:02:59.2]} 2. Nf3 {[%clk 0:02:53.4]}
2... g6 {[%clk 0:02:58.5]} 3. e3 {[%clk 0:02:43]} 3... Bg7 {[%clk 0:02:58.2]} 4.
Be2 {[%clk 0:02:42.6]} 4... O-O {[%clk 0:02:58.3]} 5. O-O {[%clk 0:02:42.5]}
5... d6 {[%clk 0:02:58.9]} 6. b3 {[%clk 0:02:42.1]} 6... Nc6 {[%clk 0:02:48.2]}
7. Bb2 {[%clk 0:02:41.8]} 7... e5 {[%clk 0:02:47.8]} 8. dxe5 {[%clk 0:02:41.3]}
8... Ng4 {[%clk 0:02:42]} 9. c4 {[%clk 0:02:32.7]} 9... Ncxe5 {[%clk 0:02:27.9]}
10. Nc3 {[%clk 0:02:11.2]} 10... Be6 {[%clk 0:02:08.4]} 11. h3 {[%clk 0:02:06]}
11... Nf6 {[%clk 0:01:59.5]} 12. Qd2 {[%clk 0:01:53.5]} 12... Qe7 {[%clk
0:01:24.6]} 13. Rfd1 {[%clk 0:01:53.1]} 13... Rad8 {[%clk 0:01:19.7]} 14. Rac1
{[%clk 0:01:50.3]} 14... c6 {[%clk 0:01:18.6]} 15. Nd4 {[%clk 0:01:33.2]} 15...
Bc8 {[%clk 0:01:11.9]} 16. Bf1 {[%clk 0:01:31.9]} 16... d5 {[%clk 0:01:03.8]}
17. cxd5 {[%clk 0:01:31.3]} 17... Nxd5 {[%clk 0:01:03.3]} 18. Nxd5 {[%clk
0:01:31.5]} 18... Rxd5 {[%clk 0:01:02.9]} 19. Qe2 {[%clk 0:00:58.5]} 19... c5
{[%clk 0:00:40.2]} 20. Nb5 {[%clk 0:00:54.2]} 20... Rxd1 {[%clk 0:00:36.1]} 21.
Rxd1 {[%clk 0:00:53.7]} 21... a6 {[%clk 0:00:35.3]} 22. Nc3 {[%clk 0:00:53]}
22... Be6 {[%clk 0:00:31.4]} 23. Nd5 {[%clk 0:00:48.7]} 23... Bxd5 {[%clk
0:00:27.2]} 24. Rxd5 {[%clk 0:00:47.5]} 24... Rd8 {[%clk 0:00:27.4]} 25. Rxd8+
{[%clk 0:00:29.2]} 25... Qxd8 {[%clk 0:00:26.8]} 26. Qc2 {[%clk 0:00:23.1]}
26... Qd6 {[%clk 0:00:17.9]} 27. Be2 {[%clk 0:00:23.3]} 27... h5 {[%clk
0:00:17.3]} 28. Bc3 {[%clk 0:00:18.6]} 28... Nd7 {[%clk 0:00:16.8]} 29. Qd2
{[%clk 0:00:17.8]} 29... Qxd2 {[%clk 0:00:16.4]} 30. Bxd2 {[%clk 0:00:18.7]}
30... Kf8 {[%clk 0:00:12.1]} 31. Bf3 {[%clk 0:00:18.9]} 31... b6 {[%clk
0:00:11.1]} 32. Bc6 {[%clk 0:00:17.4]} 32... Ne5 {[%clk 0:00:10.4]} 33. Bb7
{[%clk 0:00:17.7]} 33... a5 {[%clk 0:00:10]} 34. Be4 {[%clk 0:00:18.2]} 34...
Ke7 {[%clk 0:00:09.7]} 35. Bc2 {[%clk 0:00:18.2]} 35... Kd6 {[%clk 0:00:09.1]}
36. Kf1 {[%clk 0:00:18.6]} 36... f5 {[%clk 0:00:08.9]} 37. Ke2 {[%clk
0:00:18.9]} 37... h4 {[%clk 0:00:08.7]} 38. f4 {[%clk 0:00:19.1]} 38... Nc6
{[%clk 0:00:08.1]} 39. Kd3 {[%clk 0:00:17.4]} 39... Nb4+ {[%clk 0:00:07.8]} 40.
Bxb4 {[%clk 0:00:17]} 40... axb4 {[%clk 0:00:07.1]} 41. e4 {[%clk 0:00:17.3]}
41... fxe4+ {[%clk 0:00:06.4]} 42. Kxe4 {[%clk 0:00:18.2]} 42... Bf6 {[%clk
0:00:06.5]} 43. f5 {[%clk 0:00:16.2]} 43... g5 {[%clk 0:00:06.7]} 44. Kf3 {[%clk
0:00:14.9]} 44... Ke5 {[%clk 0:00:06]} 45. Kg4 {[%clk 0:00:15.1]} 45... Kd4
{[%clk 0:00:05.2]} 46. Kh5 {[%clk 0:00:13.9]} 46... Ke5 {[%clk 0:00:04.8]} 47.
Kg6 {[%clk 0:00:13.6]} 47... Bd8 {[%clk 0:00:04.8]} 48. Bd3 {[%clk 0:00:13.9]}
48... Bf6 {[%clk 0:00:05.2]} 49. Bc4 {[%clk 0:00:14.1]} 49... Bd8 {[%clk
0:00:05.8]} 50. Be6 {[%clk 0:00:14.2]} 50... Bf6 {[%clk 0:00:06.3]} 51. Kf7
{[%clk 0:00:14.5]} 51... Bd8 {[%clk 0:00:06.2]} 52. Ke8 {[%clk 0:00:14.9]} 52...
Bf6 {[%clk 0:00:06.5]} 53. Kd7 {[%clk 0:00:15.6]} 53... Kd4 {[%clk 0:00:05.4]}
54. Kc6 {[%clk 0:00:15.5]} 54... Kc3 {[%clk 0:00:05]} 55. Kxb6 {[%clk
0:00:15.8]} 55... Bd4 {[%clk 0:00:05.3]} 56. f6 {[%clk 0:00:13.3]} 56... Bxf6
{[%clk 0:00:04.8]} 57. Kxc5 {[%clk 0:00:14.2]} 57... Be7+ {[%clk 0:00:04.2]} 58.
Kd5 {[%clk 0:00:14]} 58... Kb2 {[%clk 0:00:05]} 59. Ke5 {[%clk 0:00:14.1]} 59...
Kxa2 {[%clk 0:00:05]} 60. Kf5 {[%clk 0:00:15]} 60... Kb2 {[%clk 0:00:04.8]} 61.
Kg6 {[%clk 0:00:15.1]} 61... Kc3 {[%clk 0:00:04.8]} 62. Kf7 {[%clk 0:00:15.2]}
62... Bd8 {[%clk 0:00:05.4]} 63. Ke8 {[%clk 0:00:15.2]} 63... Bf6 {[%clk
0:00:05.7]} 64. Kf7 {[%clk 0:00:15.7]} 64... Bd8 {[%clk 0:00:05.9]} 65. Bc4
{[%clk 0:00:15.7]} 65... Kd4 {[%clk 0:00:05.7]} 66. Ke8 {[%clk 0:00:15.7]} 66...
Bf6 {[%clk 0:00:05.9]} 67. Kd7 {[%clk 0:00:15.2]} 67... Ke5 {[%clk 0:00:06.7]}
68. Kc6 {[%clk 0:00:15.3]} 68... Kf4 {[%clk 0:00:06.8]} 69. Kc5 {[%clk
0:00:15.2]} 69... Bc3 {[%clk 0:00:07.7]} 70. Bd5 {[%clk 0:00:15]} 70... Kg3
{[%clk 0:00:08.1]} 71. Kd6 {[%clk 0:00:15]} 71... Kf4 {[%clk 0:00:08.7]} 72. Ke6
{[%clk 0:00:14.7]} 72... Bd2 {[%clk 0:00:09.3]} 73. Bf3 {[%clk 0:00:14.7]} 73...
Bc3 {[%clk 0:00:09.6]} 74. Kf7 {[%clk 0:00:14.4]} 74... Bd2 {[%clk 0:00:09.8]}
75. Kg6 {[%clk 0:00:14.4]} 75... Bc3 {[%clk 0:00:10.5]} 76. Kf7 {[%clk
0:00:14.5]} 76... Bd2 {[%clk 0:00:11]} 77. Ke6 {[%clk 0:00:14.5]} 77... Bc3
{[%clk 0:00:11.6]} 78. Kf7 {[%clk 0:00:14.8]} 1/2-1/2

[Event "Early-Titled-Tuesday-Blitz-October-17-2023"]
[Site "Chess.com"]
[Date "2023.10.17"]
[Round "8"]
[White "Sokoloco"]
[Black "Aslanov_Umid"]
[Result "1-0"]
[WhiteElo "2710"]
[BlackElo "2534"]
[TimeControl "180+1"]
[EndTime "9:33:31 PDT"]
[Termination "Sokoloco won by checkmate"]

1. b3 {[%clk 0:03:00.9]} 1... d5 {[%clk 0:03:00.2]} 2. Bb2 {[%clk 0:03:01.8]}
2... c5 {[%clk 0:02:59.7]} 3. e3 {[%clk 0:03:02.1]} 3... Nc6 {[%clk 0:03:00.3]}
4. Nf3 {[%clk 0:02:56.5]} 4... Nf6 {[%clk 0:03:00.2]} 5. d4 {[%clk 0:02:56.1]}
5... e6 {[%clk 0:02:55.4]} 6. Nbd2 {[%clk 0:02:49.1]} 6... Be7 {[%clk
0:02:55.3]} 7. Bd3 {[%clk 0:02:49.7]} 7... O-O {[%clk 0:02:55.4]} 8. O-O {[%clk
0:02:50.2]} 8... b6 {[%clk 0:02:55.6]} 9. Ne5 {[%clk 0:02:47.2]} 9... Bb7 {[%clk
0:02:55.2]} 10. f4 {[%clk 0:02:45.1]} 10... Rc8 {[%clk 0:02:54.7]} 11. c3 {[%clk
0:02:45.4]} 11... Nd7 {[%clk 0:02:37.5]} 12. Rf3 {[%clk 0:02:43.1]} 12... g6
{[%clk 0:02:16.7]} 13. Rh3 {[%clk 0:02:35.5]} 13... Ndxe5 {[%clk 0:02:13.8]} 14.
fxe5 {[%clk 0:02:34.5]} 14... cxd4 {[%clk 0:02:14.5]} 15. exd4 {[%clk
0:02:31.6]} 15... Qe8 {[%clk 0:01:34.4]} 16. Qg4 {[%clk 0:02:14]} 16... f5
{[%clk 0:01:25]} 17. exf6 {[%clk 0:02:14.4]} 17... Rxf6 {[%clk 0:01:25.7]} 18.
Nf3 {[%clk 0:02:13.6]} 18... Bd6 {[%clk 0:00:43.7]} 19. Re1 {[%clk 0:02:13.4]}
19... Nd8 {[%clk 0:00:42.6]} 20. Qh4 {[%clk 0:01:43.6]} 20... Qe7 {[%clk
0:00:29.5]} 21. Ng5 {[%clk 0:01:26.7]} 21... h5 {[%clk 0:00:24]} 22. Nf3 {[%clk
0:01:02.2]} 22... Qg7 {[%clk 0:00:17]} 23. Ne5 {[%clk 0:00:50.8]} 23... Nf7
{[%clk 0:00:14.7]} 24. Rhe3 {[%clk 0:00:17.3]} 24... Be7 {[%clk 0:00:11.6]} 25.
Qh3 {[%clk 0:00:11.2]} 25... Nxe5 {[%clk 0:00:07.7]} 26. Rxe5 {[%clk 0:00:12.1]}
26... Rcf8 {[%clk 0:00:05.9]} 27. Qe3 {[%clk 0:00:09.3]} 27... Bc8 {[%clk
0:00:05.4]} 28. h3 {[%clk 0:00:06.6]} 28... Bd6 {[%clk 0:00:05.9]} 29. Rg5
{[%clk 0:00:06.6]} 29... Bf4 {[%clk 0:00:06.2]} 30. Qxf4 {[%clk 0:00:06.7]}
30... Rxf4 {[%clk 0:00:06.4]} 31. Rxg6 {[%clk 0:00:07.6]} 31... Qxg6 {[%clk
0:00:05.6]} 32. Bxg6 {[%clk 0:00:08.5]} 32... Rf2 {[%clk 0:00:05.3]} 33. Ba3
{[%clk 0:00:09.2]} 33... R8f6 {[%clk 0:00:04.8]} 34. Bxh5 {[%clk 0:00:09.9]}
34... Rxa2 {[%clk 0:00:05.3]} 35. Bd6 {[%clk 0:00:10.5]} 35... Rff2 {[%clk
0:00:05.5]} 36. Bf3 {[%clk 0:00:11.2]} 36... Rfc2 {[%clk 0:00:05.3]} 37. Re3
{[%clk 0:00:11.2]} 37... Rab2 {[%clk 0:00:05.2]} 38. Kh2 {[%clk 0:00:04.9]}
38... a5 {[%clk 0:00:05.7]} 39. c4 {[%clk 0:00:03.5]} 39... dxc4 {[%clk
0:00:04.5]} 40. bxc4 {[%clk 0:00:04.4]} 40... Rxc4 {[%clk 0:00:04.4]} 41. d5
{[%clk 0:00:05.1]} 41... Rd4 {[%clk 0:00:03]} 42. Be5 {[%clk 0:00:04.9]} 42...
Rxd5 {[%clk 0:00:03]} 43. Bxb2 {[%clk 0:00:05.4]} 43... Rb5 {[%clk 0:00:02.9]}
44. Bd4 {[%clk 0:00:04]} 44... a4 {[%clk 0:00:03.2]} 45. Ra3 {[%clk 0:00:04.1]}
45... Rb4 {[%clk 0:00:03.5]} 46. Bc3 {[%clk 0:00:04.4]} 46... Rb3 {[%clk
0:00:03.5]} 47. Rxb3 {[%clk 0:00:04.6]} 47... axb3 {[%clk 0:00:04.4]} 48. Bd1
{[%clk 0:00:05]} 48... Kf7 {[%clk 0:00:03.8]} 49. Bxb3 {[%clk 0:00:05.6]} 49...
Bb7 {[%clk 0:00:04.7]} 50. Kg3 {[%clk 0:00:05.7]} 50... Bc6 {[%clk 0:00:04.9]}
51. Kf2 {[%clk 0:00:05.9]} 51... Ke7 {[%clk 0:00:05.8]} 52. g4 {[%clk
0:00:06.4]} 52... Kd6 {[%clk 0:00:06.7]} 53. g5 {[%clk 0:00:06.4]} 53... Be4
{[%clk 0:00:07.6]} 54. Ke3 {[%clk 0:00:06.3]} 54... Bg6 {[%clk 0:00:08.2]} 55.
Kf4 {[%clk 0:00:06.7]} 55... e5+ {[%clk 0:00:08.7]} 56. Bxe5+ {[%clk 0:00:07.1]}
56... Kc5 {[%clk 0:00:09.6]} 57. h4 {[%clk 0:00:07.5]} 57... b5 {[%clk
0:00:10.5]} 58. Bf6 {[%clk 0:00:07.6]} 58... b4 {[%clk 0:00:11.2]} 59. Be7+
{[%clk 0:00:07.7]} 59... Kd4 {[%clk 0:00:11.7]} 60. Bxb4 {[%clk 0:00:07.6]}
60... Kd3 {[%clk 0:00:12.3]} 61. Be6 {[%clk 0:00:07.1]} 61... Kd4 {[%clk
0:00:12.5]} 62. Bd6 {[%clk 0:00:07.5]} 62... Kc3 {[%clk 0:00:09.1]} 63. Bf5
{[%clk 0:00:07.2]} 63... Bh5 {[%clk 0:00:09.8]} 64. g6 {[%clk 0:00:07.2]} 64...
Kc4 {[%clk 0:00:10.6]} 65. g7 {[%clk 0:00:06.9]} 65... Bf7 {[%clk 0:00:10.6]}
66. Ke5 {[%clk 0:00:07.6]} 66... Kb5 {[%clk 0:00:10.5]} 67. Be6 {[%clk
0:00:08.3]} 67... Bxe6 {[%clk 0:00:09.1]} 68. Kxe6 {[%clk 0:00:09.2]} 68... Kc4
{[%clk 0:00:09.5]} 69. g8=Q {[%clk 0:00:09.7]} 69... Kd4 {[%clk 0:00:10.4]} 70.
Qg4+ {[%clk 0:00:10.2]} 70... Ke3 {[%clk 0:00:11.3]} 71. Qf4+ {[%clk 0:00:10.3]}
71... Ke2 {[%clk 0:00:11.9]} 72. Qg3 {[%clk 0:00:10.5]} 72... Kf1 {[%clk
0:00:12.4]} 73. Qh2 {[%clk 0:00:10.6]} 73... Ke1 {[%clk 0:00:12.7]} 74. Ke5
{[%clk 0:00:11.5]} 74... Kd1 {[%clk 0:00:13.6]} 75. Ke4 {[%clk 0:00:12.4]} 75...
Kc1 {[%clk 0:00:14.4]} 76. Kd3 {[%clk 0:00:13.3]} 76... Kb1 {[%clk 0:00:15.3]}
77. Kc3 {[%clk 0:00:14.1]} 77... Kc1 {[%clk 0:00:16.2]} 78. Qc2# {[%clk
0:00:13.6]} 1-0

[Event "Early-Titled-Tuesday-Blitz-October-17-2023"]
[Site "Chess.com"]
[Date "2023.10.17"]
[Round "8"]
[White "Josgar05"]
[Black "MidnightFox"]
[Result "1-0"]
[WhiteElo "2374"]
[BlackElo "2463"]
[TimeControl "180+1"]
[EndTime "9:33:35 PDT"]
[Termination "Josgar05 won by checkmate"]

1. Nf3 {[%clk 0:03:00.9]} 1... g6 {[%clk 0:02:58.6]} 2. b3 {[%clk 0:03:01.8]}
2... Bg7 {[%clk 0:02:58.6]} 3. d4 {[%clk 0:03:00.9]} 3... Nf6 {[%clk 0:02:58.5]}
4. Bb2 {[%clk 0:03:01]} 4... O-O {[%clk 0:02:59]} 5. g3 {[%clk 0:02:59.7]} 5...
b6 {[%clk 0:02:57.8]} 6. Bg2 {[%clk 0:02:58.7]} 6... Bb7 {[%clk 0:02:58.4]} 7.
O-O {[%clk 0:02:59.6]} 7... d6 {[%clk 0:02:55.5]} 8. c4 {[%clk 0:02:59.1]} 8...
Nbd7 {[%clk 0:02:53]} 9. Nc3 {[%clk 0:02:58.5]} 9... Ne4 {[%clk 0:02:52.3]} 10.
Qc2 {[%clk 0:02:56.2]} 10... Nxc3 {[%clk 0:02:52.2]} 11. Bxc3 {[%clk 0:02:57.1]}
11... Nf6 {[%clk 0:02:51.8]} 12. Rfe1 {[%clk 0:02:56.4]} 12... Be4 {[%clk
0:02:51.1]} 13. Qc1 {[%clk 0:02:50.6]} 13... c6 {[%clk 0:02:47.4]} 14. Bh3
{[%clk 0:02:49.2]} 14... Bxf3 {[%clk 0:02:46.4]} 15. exf3 {[%clk 0:02:49.4]}
15... e6 {[%clk 0:02:46.9]} 16. f4 {[%clk 0:02:33.2]} 16... d5 {[%clk
0:02:46.5]} 17. Bg2 {[%clk 0:02:31.3]} 17... Rc8 {[%clk 0:02:44.9]} 18. Qd2
{[%clk 0:02:28.9]} 18... Qd7 {[%clk 0:02:41.6]} 19. a4 {[%clk 0:02:28.2]} 19...
a5 {[%clk 0:02:38]} 20. Rad1 {[%clk 0:02:24.8]} 20... Rfd8 {[%clk 0:02:33.3]}
21. Qe2 {[%clk 0:02:18.6]} 21... Bf8 {[%clk 0:02:13.9]} 22. Bf3 {[%clk
0:02:11.1]} 22... Bb4 {[%clk 0:02:08.1]} 23. Bxb4 {[%clk 0:02:09.5]} 23... axb4
{[%clk 0:02:09]} 24. h4 {[%clk 0:02:02.1]} 24... h5 {[%clk 0:02:05.1]} 25. Kg2
{[%clk 0:02:01.4]} 25... Kg7 {[%clk 0:02:05.4]} 26. Qe5 {[%clk 0:01:59]} 26...
Qd6 {[%clk 0:02:03.5]} 27. Qe3 {[%clk 0:01:58.1]} 27... Ng8 {[%clk 0:02:00.1]}
28. Qd2 {[%clk 0:01:41.3]} 28... Ne7 {[%clk 0:01:53.3]} 29. Qb2 {[%clk
0:01:17.2]} 29... Nf5 {[%clk 0:01:46.1]} 30. c5 {[%clk 0:01:16.7]} 30... Qb8
{[%clk 0:01:40.7]} 31. cxb6 {[%clk 0:01:15.9]} 31... Qxb6 {[%clk 0:01:40.2]} 32.
Rc1 {[%clk 0:01:16.5]} 32... Qxd4 {[%clk 0:01:34.7]} 33. Qe2 {[%clk 0:01:11.5]}
33... c5 {[%clk 0:01:32.3]} 34. Red1 {[%clk 0:01:08]} 34... Qf6 {[%clk
0:01:30.7]} 35. Qe1 {[%clk 0:01:01.2]} 35... Nd4 {[%clk 0:01:27.2]} 36. Qe3
{[%clk 0:00:55.3]} 36... c4 {[%clk 0:01:10.5]} 37. Qxd4 {[%clk 0:00:52.8]} 37...
Qxd4 {[%clk 0:01:08.2]} 38. Rxd4 {[%clk 0:00:53.7]} 38... cxb3 {[%clk
0:01:06.9]} 39. Rb1 {[%clk 0:00:53.9]} 39... Rc4 {[%clk 0:01:01.8]} 40. Rd3
{[%clk 0:00:50.7]} 40... Ra8 {[%clk 0:01:00.5]} 41. Rdxb3 {[%clk 0:00:47.4]}
41... Rxa4 {[%clk 0:01:00.4]} 42. Be2 {[%clk 0:00:46.2]} 42... Rd4 {[%clk
0:00:59]} 43. Bb5 {[%clk 0:00:44.4]} 43... Ra2 {[%clk 0:00:55.1]} 44. R1b2
{[%clk 0:00:44.4]} 44... Rxb2 {[%clk 0:00:48]} 45. Rxb2 {[%clk 0:00:45.3]} 45...
Kf6 {[%clk 0:00:47.5]} 46. Kf3 {[%clk 0:00:45.3]} 46... Ke7 {[%clk 0:00:45.6]}
47. Ke3 {[%clk 0:00:43.2]} 47... Re4+ {[%clk 0:00:45.8]} 48. Kd3 {[%clk
0:00:43.8]} 48... Kd6 {[%clk 0:00:44.1]} 49. Be8 {[%clk 0:00:38.3]} 49... Ke7
{[%clk 0:00:43.6]} 50. Ba4 {[%clk 0:00:38.9]} 50... f6 {[%clk 0:00:38.3]} 51. f3
{[%clk 0:00:37.1]} 51... Rc4 {[%clk 0:00:38.1]} 52. Bb5 {[%clk 0:00:34.8]} 52...
Rc3+ {[%clk 0:00:36.3]} 53. Ke2 {[%clk 0:00:30.8]} 53... b3 {[%clk 0:00:35.4]}
54. Ba4 {[%clk 0:00:29.5]} 54... Kd6 {[%clk 0:00:20.2]} 55. Bxb3 {[%clk
0:00:28.7]} 55... Kc5 {[%clk 0:00:20.1]} 56. Bc2 {[%clk 0:00:27.5]} 56... Kd4
{[%clk 0:00:19.8]} 57. Bxg6 {[%clk 0:00:24.5]} 57... f5 {[%clk 0:00:17.6]} 58.
Rd2+ {[%clk 0:00:20.3]} 58... Kc4 {[%clk 0:00:17.1]} 59. Bf7 {[%clk 0:00:20.5]}
59... d4 {[%clk 0:00:15.2]} 60. Kf2 {[%clk 0:00:20]} 60... Re3 {[%clk
0:00:14.1]} 61. Re2 {[%clk 0:00:20.4]} 61... Kd3 {[%clk 0:00:12]} 62. Rxe3+
{[%clk 0:00:17.8]} 62... dxe3+ {[%clk 0:00:12.9]} 63. Ke1 {[%clk 0:00:18.3]}
63... e2 {[%clk 0:00:13.8]} 64. Bxe6 {[%clk 0:00:18.4]} 64... Ke3 {[%clk
0:00:14.7]} 65. Bd5 {[%clk 0:00:17.9]} 65... Kd3 {[%clk 0:00:14]} 66. Bb7 {[%clk
0:00:17.5]} 66... Ke3 {[%clk 0:00:13.7]} 67. Bc6 {[%clk 0:00:15]} 67... Kd3
{[%clk 0:00:14]} 68. Bb5+ {[%clk 0:00:13.6]} 68... Ke3 {[%clk 0:00:14]} 69. Bxe2
{[%clk 0:00:14.5]} 69... Kd4 {[%clk 0:00:14.3]} 70. Kf2 {[%clk 0:00:15]} 70...
Kc3 {[%clk 0:00:14.5]} 71. Bb5 {[%clk 0:00:14.8]} 71... Kd2 {[%clk 0:00:15.4]}
72. Be8 {[%clk 0:00:15.3]} 72... Kd1 {[%clk 0:00:15.1]} 73. Bxh5 {[%clk
0:00:16.2]} 73... Kd2 {[%clk 0:00:16]} 74. Bg6 {[%clk 0:00:16.7]} 74... Kd3
{[%clk 0:00:16.9]} 75. h5 {[%clk 0:00:17.6]} 75... Kd4 {[%clk 0:00:17.8]} 76. h6
{[%clk 0:00:18.5]} 76... Kc3 {[%clk 0:00:18.7]} 77. h7 {[%clk 0:00:19.4]} 77...
Kd2 {[%clk 0:00:19.6]} 78. h8=Q {[%clk 0:00:19.6]} 78... Kc1 {[%clk 0:00:20.5]}
79. Bxf5 {[%clk 0:00:20]} 79... Kd2 {[%clk 0:00:19.8]} 80. Qd4+ {[%clk
0:00:20.4]} 80... Kc1 {[%clk 0:00:20.2]} 81. Qc3+ {[%clk 0:00:20.6]} 81... Kd1
{[%clk 0:00:20]} 82. Bc2+ {[%clk 0:00:21.2]} 82... Kc1 {[%clk 0:00:20.2]} 83.
Bd3+ {[%clk 0:00:21.5]} 83... Kd1 {[%clk 0:00:21.1]} 84. Qc2# {[%clk 0:00:21.7]}
1-0

[Event "Early-Titled-Tuesday-Blitz-October-17-2023"]
[Site "Chess.com"]
[Date "2023.10.17"]
[Round "8"]
[White "GMSAGOR"]
[Black "bescmelasti"]
[Result "0-1"]
[WhiteElo "2471"]
[BlackElo "2617"]
[TimeControl "180+1"]
[EndTime "9:33:42 PDT"]
[Termination "bescmelasti won on time"]

1. e4 {[%clk 0:02:58.7]} 1... c5 {[%clk 0:02:58.3]} 2. Nf3 {[%clk 0:02:58.7]}
2... e6 {[%clk 0:02:59]} 3. d4 {[%clk 0:02:58.7]} 3... cxd4 {[%clk 0:02:59.9]}
4. Nxd4 {[%clk 0:02:59.5]} 4... Nf6 {[%clk 0:03:00.8]} 5. Nc3 {[%clk 0:02:59.8]}
5... Nc6 {[%clk 0:03:01.6]} 6. Ndb5 {[%clk 0:02:58.6]} 6... Bc5 {[%clk
0:03:00.5]} 7. Nd6+ {[%clk 0:02:50.1]} 7... Ke7 {[%clk 0:03:00.5]} 8. Nxc8+
{[%clk 0:02:49.3]} 8... Rxc8 {[%clk 0:03:01.4]} 9. Bd3 {[%clk 0:02:49.5]} 9...
Qc7 {[%clk 0:03:00.6]} 10. O-O {[%clk 0:02:48]} 10... h5 {[%clk 0:03:00.1]} 11.
Bg5 {[%clk 0:02:33.9]} 11... Kf8 {[%clk 0:02:59.8]} 12. Bxf6 {[%clk 0:02:27.5]}
12... gxf6 {[%clk 0:03:00.7]} 13. Qf3 {[%clk 0:02:26.5]} 13... Qe5 {[%clk
0:02:58.4]} 14. Ne2 {[%clk 0:02:21.3]} 14... Qxb2 {[%clk 0:02:44.7]} 15. Rab1
{[%clk 0:02:19.7]} 15... Qe5 {[%clk 0:02:45.1]} 16. Rxb7 {[%clk 0:02:18.5]}
16... Bb6 {[%clk 0:02:42.2]} 17. Rxd7 {[%clk 0:02:17]} 17... Bc7 {[%clk
0:02:16.7]} 18. Qh3 {[%clk 0:02:10.6]} 18... Ke8 {[%clk 0:02:11.9]} 19. Rxc7
{[%clk 0:01:58.8]} 19... Rxc7 {[%clk 0:02:12.8]} 20. Qe3 {[%clk 0:01:51.8]}
20... Nb4 {[%clk 0:02:03]} 21. Rb1 {[%clk 0:01:36.7]} 21... Nc6 {[%clk
0:01:37.9]} 22. f4 {[%clk 0:01:23.8]} 22... Qa5 {[%clk 0:01:37.3]} 23. Bb5
{[%clk 0:01:21.2]} 23... Kf8 {[%clk 0:01:07.4]} 24. Bxc6 {[%clk 0:00:38.5]}
24... Rxc6 {[%clk 0:01:08.3]} 25. Nd4 {[%clk 0:00:20.5]} 25... Rb6 {[%clk
0:01:07.7]} 26. Nb3 {[%clk 0:00:20]} 26... Qxa2 {[%clk 0:00:57.3]} 27. Qc5+
{[%clk 0:00:19.9]} 27... Kg7 {[%clk 0:00:56.5]} 28. Rd1 {[%clk 0:00:18.2]} 28...
Qa4 {[%clk 0:00:42.3]} 29. Rd3 {[%clk 0:00:16.7]} 29... h4 {[%clk 0:00:42.8]}
30. e5 {[%clk 0:00:15.1]} 30... Qxf4 {[%clk 0:00:34.8]} 31. exf6+ {[%clk
0:00:14.7]} 31... Qxf6 {[%clk 0:00:35.7]} 32. Rf3 {[%clk 0:00:13.6]} 32... Qg6
{[%clk 0:00:34.4]} 33. Qe5+ {[%clk 0:00:12.4]} 33... Kg8 {[%clk 0:00:32.4]} 34.
h3 {[%clk 0:00:09.7]} 34... Rh5 {[%clk 0:00:32.2]} 35. Qc7 {[%clk 0:00:08.7]}
35... Rg5 {[%clk 0:00:31.1]} 36. Rf2 {[%clk 0:00:08.5]} 36... Rbb5 {[%clk
0:00:25.2]} 37. Nd4 {[%clk 0:00:07.7]} 37... Rb1+ {[%clk 0:00:25]} 38. Kh2
{[%clk 0:00:07.8]} 38... Rg3 {[%clk 0:00:19.8]} 39. Qd8+ {[%clk 0:00:05.1]}
39... Kg7 {[%clk 0:00:18.8]} 40. Qxh4 {[%clk 0:00:05.7]} 40... Rd1 {[%clk
0:00:04.2]} 41. Qxg3 {[%clk 0:00:04]} 41... Rh1+ {[%clk 0:00:04.4]} 42. Kxh1
{[%clk 0:00:03.5]} 42... Qxg3 {[%clk 0:00:05.3]} 43. Rf3 {[%clk 0:00:03.4]}
43... Qe1+ {[%clk 0:00:05.6]} 44. Kh2 {[%clk 0:00:03.5]} 44... Qe5+ {[%clk
0:00:06.5]} 45. Rg3+ {[%clk 0:00:04]} 45... Kf8 {[%clk 0:00:05.6]} 46. Nf3
{[%clk 0:00:04.5]} 46... Qc7 {[%clk 0:00:05.6]} 47. h4 {[%clk 0:00:04.3]} 47...
Qxc2 {[%clk 0:00:05.5]} 48. h5 {[%clk 0:00:05.2]} 48... a5 {[%clk 0:00:05.2]}
49. h6 {[%clk 0:00:05.3]} 49... a4 {[%clk 0:00:05.4]} 50. Rh3 {[%clk 0:00:05.9]}
50... Kg8 {[%clk 0:00:03.3]} 51. h7+ {[%clk 0:00:06.2]} 51... Qxh7 {[%clk
0:00:02.7]} 52. Rxh7 {[%clk 0:00:05.6]} 52... Kxh7 {[%clk 0:00:03.6]} 53. Nd2
{[%clk 0:00:05.5]} 53... a3 {[%clk 0:00:03.7]} 54. Kg3 {[%clk 0:00:05.7]} 54...
Kg6 {[%clk 0:00:03.6]} 55. Kf4 {[%clk 0:00:05.9]} 55... a2 {[%clk 0:00:03.2]}
56. Nb3 {[%clk 0:00:05.7]} 56... f6 {[%clk 0:00:03.3]} 57. g4 {[%clk 0:00:05.7]}
57... e5+ {[%clk 0:00:03.1]} 58. Kf3 {[%clk 0:00:04]} 58... Kg5 {[%clk 0:00:04]}
59. Na1 {[%clk 0:00:03.6]} 59... f5 {[%clk 0:00:02.6]} 60. gxf5 {[%clk
0:00:03.7]} 60... Kxf5 {[%clk 0:00:03.5]} 61. Ke3 {[%clk 0:00:04.4]} 61... e4
{[%clk 0:00:04.1]} 62. Nb3 {[%clk 0:00:04]} 62... Ke5 {[%clk 0:00:05]} 63. Kd2
{[%clk 0:00:02]} 63... Kd5 {[%clk 0:00:05.9]} 64. Kc2 {[%clk 0:00:02.3]} 64...
Kc4 {[%clk 0:00:06.3]} 65. Nd2+ {[%clk 0:00:01.3]} 65... Kd4 {[%clk 0:00:06.7]}
66. Kb2 {[%clk 0:00:01.6]} 66... e3 {[%clk 0:00:06.5]} 67. Nb3+ {[%clk 0:00:01]}
67... Kc4 {[%clk 0:00:05.5]} 0-1